bitfinex-derivatives/quotes_BTCF0:USTF0_20250508
["timestamp","ask_amount","ask_price","bid_price","bid_amount"]
[1746694270323,0.0501101,99776.0,99751.0,0.53585765]
[1746694270526,0.2505848,99768.0,99767.0,0.3608]
[1746694271028,0.2505848,99768.0,99767.0,0.3808]
[1746694271525,0.3007009,99768.0,99767.0,0.581249]
[1746694271823,0.0015042,99772.0,99771.0,0.200449]
[1746694272023,0.0015042,99772.0,99771.0,0.220449]
[1746694272220,0.0501043,99787.0,99784.0,0.2004229]
[1746694272425,0.4008166,99785.0,99784.0,0.2004229]
[1746694272628,0.4008166,99785.0,99784.0,0.5612229]
[1746694272821,0.2314266,99785.0,99784.0,0.5612229]
[1746694273020,0.7314266,99785.0,99784.0,0.5612229]
[1746694273226,0.5,99785.0,99784.0,0.5912229]
[1746694273415,0.5,99785.0,99784.0,0.6235229]
[1746694273620,0.5,99785.0,99784.0,0.6435229]
[1746694274022,0.7004209,99785.0,99784.0,0.6435229]
[1746694274221,0.2004209,99785.0,99784.0,0.6445229]
[1746694274926,0.2004209,99785.0,99784.0,0.6455229]
[1746694275320,0.001,99786.0,99785.0,0.2004209]
[1746694275520,0.001,99786.0,99785.0,0.3104209]
[1746694276219,0.001,99786.0,99785.0,0.3153946]
[1746694276920,0.0500969,99802.0,99785.0,0.3153946]
[1746694276921,0.0500983,99799.0,99785.0,0.1169737]
[1746694277129,0.2504943,99798.0,99797.0,0.2003947]
[1746694277323,0.2504943,99798.0,99797.0,0.5811947]
[1746694277523,0.5121843,99798.0,99797.0,0.5811947]
[1746694277923,1.0121843,99798.0,99797.0,0.5811947]
[1746694278425,1.0121843,99798.0,99797.0,0.5821947]
[1746694280533,1.0121843,99798.0,99797.0,0.5811947]
[1746694280830,1.0121843,99798.0,99797.0,0.5821947]
[1746694282628,1.0121843,99798.0,99797.0,0.5621968]
[1746694283331,1.0121843,99798.0,99797.0,0.2003968]
[1746694283630,1.0121843,99798.0,99797.0,0.2013968]
[1746694285425,1.0121843,99798.0,99797.0,0.2322968]
[1746694285625,1.0121843,99798.0,99797.0,0.2522968]
[1746694286033,1.0121843,99798.0,99797.0,0.2322968]
[1746694288026,1.0121843,99798.0,99797.0,0.001]
[1746694291740,1.0131843,99798.0,99797.0,0.001]
[1746694292526,1.0141843,99798.0,99797.0,0.001]
[1746694292927,0.2003968,99797.0,99796.0,0.3608]
[1746694293131,0.4007868,99797.0,99796.0,0.3608]
[1746694293326,0.4636868,99797.0,99796.0,0.3608]
[1746694294539,0.4646868,99797.0,99796.0,0.3608]
[1746694294737,0.9646868,99797.0,99796.0,0.3608]
[1746694295239,0.9656868,99797.0,99796.0,0.3608]
[1746694297033,0.915104,99797.0,99764.0,0.56913092]
[1746694297342,0.200449,99771.0,99770.0,0.0308]
[1746694297537,0.200461,99765.0,99764.0,0.15143092]
[1746694298538,0.264061,99765.0,99764.0,0.15143092]
[1746694299536,0.2004791,99756.0,99755.0,0.00100245]
[1746694299737,0.5612791,99756.0,99755.0,0.00100245]
[1746694300542,0.6248791,99756.0,99755.0,0.00100245]
[1746694301041,0.6278791,99756.0,99755.0,0.00200245]
[1746694302129,1.1278791,99756.0,99755.0,0.00200245]
[1746694302847,1.1318791,99756.0,99755.0,0.00200245]
[1746694304638,0.2004952,99748.0,99747.0,0.0015038]
[1746694304939,0.5612952,99748.0,99747.0,0.0015038]
[1746694305545,0.6240952,99748.0,99747.0,0.0015038]
[1746694305739,0.6260952,99748.0,99747.0,0.0015038]
[1746694306242,0.6270952,99748.0,99747.0,0.0015038]
[1746694306442,1.1270952,99748.0,99747.0,0.0015038]
[1746694306649,0.2005233,99734.0,99726.0,0.0308]
[1746694306839,0.2005233,99734.0,99732.0,0.0332]
[1746694307044,0.2005233,99734.0,99732.0,0.2337267]
[1746694307244,0.2005233,99734.0,99733.0,0.05156851]
[1746694307443,0.2005233,99734.0,99733.0,0.28529391]
[1746694308340,0.2005233,99734.0,99733.0,0.28829391]
[1746694309035,0.2005233,99734.0,99733.0,0.28529391]
[1746694309241,0.2005233,99734.0,99733.0,0.28829391]
[1746694309449,0.2015233,99734.0,99733.0,0.29229391]
[1746694311149,0.2015233,99734.0,99733.0,0.28929391]
[1746694311447,0.2015233,99734.0,99733.0,0.29129391]
[1746694312043,0.2015233,99734.0,99733.0,0.28929391]
[1746694312349,0.2015233,99734.0,99733.0,0.29129391]
[1746694312550,0.2015233,99734.0,99733.0,0.09076851]
[1746694313051,0.2015233,99734.0,99733.0,0.035]
[1746694313250,0.2989233,99734.0,99733.0,0.035]
[1746694314746,0.2989233,99734.0,99733.0,0.033]
[1746694315054,0.2989233,99734.0,99733.0,0.035]
[1746694321655,0.2340233,99734.0,99733.0,0.035]
[1746694321959,0.2015233,99734.0,99733.0,0.035]
[1746694322161,0.2015233,99734.0,99733.0,0.2355254]
[1746694328653,0.2015233,99734.0,99733.0,0.035]
[1746694329051,0.2327233,99734.0,99733.0,0.035]
[1746694332558,0.2327233,99734.0,99733.0,0.2355254]
[1746694333064,0.2327233,99734.0,99733.0,0.0677]
[1746694334465,0.2015233,99734.0,99733.0,0.21913092]
[1746694334653,0.2015233,99734.0,99733.0,0.41965632]
[1746694335668,0.001,99734.0,99733.0,0.41965632]
[1746694335861,0.2015233,99734.0,99733.0,0.41965632]
[1746694336955,0.2015233,99734.0,99733.0,0.2682254]
[1746694338562,0.2015233,99734.0,99733.0,0.035]
[1746694338763,0.2317233,99734.0,99733.0,0.035]
[1746694340666,0.2317233,99734.0,99733.0,0.2355254]
[1746694342172,0.2317233,99734.0,99733.0,0.035]
[1746694342669,0.2317233,99734.0,99733.0,0.2355254]
[1746694343572,0.2317233,99734.0,99733.0,0.2335254]
[1746694344473,0.2317233,99734.0,99733.0,0.034]
[1746694344670,0.2307233,99734.0,99733.0,0.033]
[1746694345271,0.2307233,99734.0,99733.0,0.2335254]
[1746694345672,0.2307233,99734.0,99733.0,0.2325254]
[1746694345975,0.2317233,99734.0,99733.0,0.2345254]
[1746694346273,0.2317233,99734.0,99733.0,0.2325254]
[1746694346468,0.2317233,99734.0,99733.0,0.2345254]
[1746694347467,0.2317233,99734.0,99733.0,0.2669254]
[1746694348471,0.2307233,99734.0,99733.0,0.2659254]
[1746694348674,0.2307233,99734.0,99733.0,0.2335254]
[1746694348971,0.2307233,99734.0,99733.0,0.2325254]
[1746694349271,0.2317233,99734.0,99733.0,0.2345254]
[1746694349666,0.2307233,99734.0,99733.0,0.2335254]
[1746694351576,0.2317233,99734.0,99733.0,0.2345254]
[1746694355275,0.2015233,99734.0,99733.0,0.2345254]
[1746694357984,0.001,99734.0,99733.0,0.2345254]
[1746694358180,0.2015233,99734.0,99733.0,0.2445254]
[1746694366189,0.2665233,99734.0,99733.0,0.034]
[1746694370289,0.2665233,99734.0,99733.0,0.2345254]
[1746694371595,0.2665233,99734.0,99733.0,0.034]
[1746694372198,0.6273233,99734.0,99733.0,0.003]
[1746694372589,0.2005314,99730.0,99729.0,0.00298753]
[1746694372785,0.5613314,99730.0,99703.0,0.0326]
[1746694372987,0.2005394,99726.0,99725.0,3e-08]
[1746694373298,0.3685394,99726.0,99725.0,3e-08]
[1746694373491,0.4688154,99726.0,99725.0,3e-08]
[1746694374886,0.9688154,99726.0,99725.0,3e-08]
[1746694375294,0.8685394,99726.0,99725.0,3e-08]
[1746694375799,0.8685394,99726.0,99725.0,0.00200003]
[1746694375995,0.8695394,99726.0,99725.0,0.00400003]
[1746694376199,0.7015394,99726.0,99725.0,0.00400003]
[1746694376493,0.7015394,99726.0,99725.0,0.00300003]
[1746694376695,0.7015394,99726.0,99725.0,0.00200003]
[1746694377992,0.7015394,99726.0,99725.0,0.00100003]
[1746694378193,0.7015394,99726.0,99725.0,0.00300003]
[1746694379394,0.7015394,99726.0,99725.0,0.00100003]
[1746694385504,0.7005394,99726.0,99725.0,3e-08]
[1746694385817,0.7015394,99726.0,99725.0,0.00100003]
[1746694386499,0.7015394,99726.0,99725.0,0.20154143]
[1746694386906,0.7015394,99726.0,99725.0,0.26694143]
[1746694387407,0.7015394,99726.0,99725.0,0.06640003]
[1746694387609,0.7015394,99726.0,99725.0,0.26794143]
[1746694388403,0.7015394,99726.0,99725.0,0.26694143]
[1746694388612,0.7005394,99726.0,99725.0,0.26594143]
[1746694388811,0.5,99726.0,99725.0,0.26694143]
[1746694389105,0.2005394,99726.0,99725.0,0.43721443]
[1746694389306,0.250667,99732.0,99731.0,0.2005294]
[1746694389507,0.2005294,99731.0,99730.0,0.065]
[1746694389805,0.2005294,99731.0,99730.0,0.2655314]
[1746694390010,0.2005246,99734.0,99733.0,0.2506523]
[1746694390304,0.2005246,99734.0,99733.0,0.3405213]
[1746694391510,0.2005246,99734.0,99733.0,0.2005213]
[1746694391711,0.2015246,99734.0,99733.0,0.2025213]
[1746694392203,0.2005246,99734.0,99733.0,0.2025213]
[1746694392408,0.2015246,99734.0,99733.0,0.2025213]
[1746694392803,0.2015246,99734.0,99733.0,0.2015213]
[1746694393603,0.2015246,99734.0,99733.0,0.2035213]
[1746694394208,0.2015246,99734.0,99733.0,0.2115213]
[1746694394405,0.2005246,99734.0,99733.0,0.2025213]
[1746694394604,0.2015246,99734.0,99733.0,0.004]
[1746694395000,0.2015246,99734.0,99730.0,0.065]
[1746694395205,0.2005294,99731.0,99730.0,0.065]
[1746694395599,0.2005294,99731.0,99730.0,0.033]
[1746694396209,0.7005294,99731.0,99730.0,0.033]
[1746694397914,0.7015294,99731.0,99730.0,0.035]
[1746694398417,0.7005294,99731.0,99730.0,0.033]
[1746694400011,0.2005394,99726.0,99725.0,3e-08]
[1746694401014,0.2305394,99726.0,99725.0,3e-08]
[1746694401214,0.2315394,99726.0,99725.0,0.00100003]
[1746694401415,0.2315394,99726.0,99725.0,0.06330003]
[1746694402714,0.2315394,99726.0,99725.0,0.06430003]
[1746694404301,0.2315394,99726.0,99725.0,0.03410003]
[1746694406015,0.2315394,99726.0,99725.0,0.03310003]
[1746694406806,0.2325394,99726.0,99725.0,0.03310003]
[1746694407609,0.2315394,99726.0,99725.0,0.03310003]
[1746694407808,0.2305394,99726.0,99725.0,0.03210003]
[1746694408009,0.2315394,99726.0,99725.0,0.03310003]
[1746694409414,0.2325394,99726.0,99725.0,0.03310003]
[1746694409817,0.2315394,99726.0,99725.0,0.03210003]
[1746694410015,0.2325394,99726.0,99725.0,0.03310003]
[1746694410219,0.2315394,99726.0,99725.0,0.03310003]
[1746694411323,0.001,99726.0,99725.0,0.33391743]
[1746694411514,0.2506709,99731.0,99730.0,0.0501315]
[1746694411713,0.2506709,99731.0,99730.0,0.4109315]
[1746694412511,0.2506709,99731.0,99730.0,0.6114528]
[1746694412915,0.2516709,99731.0,99730.0,0.6134528]
[1746694413120,0.2516709,99731.0,99730.0,0.6654528]
[1746694413421,0.001,99731.0,99730.0,0.6754528]
[1746694413623,0.2015294,99731.0,99730.0,0.7854528]
[1746694414621,0.2015294,99731.0,99730.0,0.7354528]
[1746694414823,0.2005294,99731.0,99730.0,0.7334528]
[1746694415120,0.2015294,99731.0,99730.0,0.7854528]
[1746694415414,0.2015294,99731.0,99730.0,0.7864528]
[1746694416619,0.2015294,99731.0,99730.0,0.7364528]
[1746694416818,0.0501206,99755.0,99730.0,1.223772]
[1746694417013,0.0626,99765.0,99754.0,0.3608]
[1746694417209,0.2505828,99764.0,99763.0,0.2004651]
[1746694417511,0.02885397,99766.0,99765.0,0.200461]
[1746694417716,0.22931297,99766.0,99765.0,0.200461]
[1746694418425,0.02885397,99766.0,99765.0,0.200461]
[1746694418814,0.01350288,99766.0,99765.0,0.738161]
[1746694419015,0.01450288,99766.0,99765.0,0.881161]
[1746694419215,0.01450288,99766.0,99765.0,0.791161]
[1746694419416,0.001,99766.0,99765.0,0.89439699]
[1746694419615,0.001,99766.0,99765.0,1.14439699]
[1746694420022,0.2004278,99782.0,99781.0,0.2004289]
[1746694420215,0.2004278,99782.0,99781.0,0.5612289]
[1746694420618,0.001,99786.0,99785.0,0.2004209]
[1746694421321,0.2014188,99786.0,99785.0,0.2004209]
[1746694422217,0.2014188,99786.0,99785.0,0.2014209]
[1746694422521,0.001,99786.0,99785.0,0.3016369]
[1746694422725,0.001,99786.0,99785.0,0.3006369]
[1746694423018,0.001,99786.0,99785.0,0.3016369]
[1746694423224,0.001,99786.0,99785.0,0.3036369]
[1746694423525,0.001,99786.0,99785.0,0.2034209]
[1746694424226,0.001,99786.0,99785.0,0.8113369]
[1746694424425,0.001,99786.0,99785.0,0.8103369]
[1746694424625,0.001,99786.0,99785.0,0.9713369]
[1746694425024,0.001,99786.0,99785.0,0.9703369]
[1746694425212,0.001,99786.0,99785.0,0.9713369]
[1746694425417,0.001,99786.0,99785.0,0.9703369]
[1746694425824,0.001,99786.0,99785.0,0.8403369]
[1746694426326,0.001,99786.0,99785.0,0.9513369]
[1746694426630,0.001,99786.0,99785.0,0.8511209]
[1746694427319,0.001,99786.0,99785.0,0.6811209]
[1746694427518,0.001,99786.0,99785.0,0.7411209]
[1746694427918,0.001,99786.0,99785.0,0.6811209]
[1746694428123,0.001,99786.0,99785.0,0.7711209]
[1746694428325,0.008,99786.0,99785.0,0.7711209]
[1746694428526,0.008,99786.0,99785.0,0.9013369]
[1746694428824,0.014,99786.0,99785.0,1.0093369]
[1746694429426,0.008,99786.0,99785.0,1.0093369]
[1746694429626,0.014,99786.0,99785.0,1.0093369]
[1746694430226,0.008,99786.0,99785.0,1.0093369]
[1746694430524,0.014,99786.0,99785.0,1.0093369]
[1746694431325,0.014,99786.0,99785.0,0.8993369]
[1746694431529,0.007,99786.0,99785.0,0.8983369]
[1746694431730,0.2003956,99798.0,99797.0,0.2003947]
[1746694432026,0.2317956,99798.0,99797.0,0.5611947]
[1746694432219,0.0314,99798.0,99797.0,0.5611947]
[1746694432419,0.2317947,99798.0,99797.0,0.5611947]
[1746694433019,0.0384,99798.0,99797.0,0.5621947]
[1746694433430,0.2387947,99798.0,99797.0,0.5621947]
[1746694433727,0.2774947,99798.0,99797.0,0.5621947]
[1746694434428,0.0771,99798.0,99797.0,0.5621947]
[1746694435530,0.2654947,99798.0,99797.0,0.5761947]
[1746694435731,0.0651,99798.0,99797.0,0.5761947]
[1746694436125,0.0641,99798.0,99797.0,0.5611947]
[1746694436330,0.2654947,99798.0,99797.0,0.5761947]
[1746694438529,0.2644947,99798.0,99797.0,0.5681947]
[1746694438729,0.2654947,99798.0,99797.0,0.5741947]
[1746694439136,0.2644947,99798.0,99797.0,0.5671947]
[1746694439323,0.2654947,99798.0,99797.0,0.5681947]
[1746694439527,0.2654947,99798.0,99797.0,0.3738]
[1746694439933,0.2644947,99798.0,99797.0,0.5671968]
[1746694440131,0.4334947,99798.0,99797.0,0.5681968]
[1746694440326,0.4334947,99798.0,99797.0,0.5741968]
[1746694441631,0.4324947,99798.0,99797.0,0.5671968]
[1746694441830,0.4334947,99798.0,99797.0,0.5721968]
[1746694442232,0.4334947,99798.0,99797.0,0.3718]
[1746694442633,0.4334947,99798.0,99797.0,0.5721968]
[1746694444733,0.2331,99798.0,99797.0,0.5721968]
[1746694445127,0.0651,99798.0,99797.0,0.5721968]
[1746694445643,0.2654947,99798.0,99797.0,0.3718]
[1746694447534,0.2654947,99798.0,99797.0,0.5721968]
[1746694448742,0.2654947,99798.0,99797.0,0.3718]
[1746694449444,0.2654947,99798.0,99797.0,0.5721968]
[1746694450535,0.2654947,99798.0,99797.0,0.3718]
[1746694450744,0.6262947,99798.0,99797.0,0.011]
[1746694450937,0.2654947,99798.0,99797.0,0.011]
[1746694451130,0.4334947,99798.0,99797.0,0.011]
[1746694451937,0.9334947,99798.0,99797.0,0.011]
[1746694452142,0.7654947,99798.0,99797.0,0.011]
[1746694452543,0.7654947,99798.0,99797.0,0.2113968]
[1746694462445,0.7654947,99798.0,99797.0,0.2440968]
[1746694462852,0.7654947,99798.0,99797.0,0.2441968]
[1746694466951,0.501,99798.0,99797.0,0.2441968]
[1746694467141,0.501,99798.0,99797.0,0.2765968]
[1746694467346,0.7013947,99798.0,99797.0,0.2765968]
[1746694467539,0.2013947,99798.0,99797.0,0.2765968]
[1746694467948,0.001,99798.0,99797.0,0.2765968]
[1746694468452,0.001,99798.0,99797.0,0.3665968]
[1746694468641,0.001,99798.0,99797.0,0.4865968]
[1746694471453,0.001,99798.0,99797.0,0.3765968]
[1746694472049,0.001,99798.0,99797.0,0.7268008]
[1746694472652,0.001,99798.0,99797.0,0.6368008]
[1746694472849,0.001,99798.0,99797.0,0.8868008]
[1746694473249,0.001,99798.0,99797.0,0.6368008]
[1746694473854,0.001,99798.0,99797.0,0.5068008]
[1746694475158,0.001,99798.0,99797.0,0.6168008]
[1746694475558,0.001,99798.0,99797.0,0.8545008]
[1746694475858,0.001,99798.0,99797.0,0.9745008]
[1746694476461,0.001,99798.0,99797.0,0.8742968]
[1746694478458,0.001,99798.0,99797.0,0.9043968]
[1746694478865,0.00150373,99801.0,99800.0,0.2003907]
[1746694479061,0.00150373,99801.0,99800.0,0.6011907]
[1746694479973,0.00150373,99801.0,99800.0,0.5711907]
[1746694480473,0.00250373,99801.0,99800.0,0.6101907]
[1746694480673,0.00250373,99801.0,99800.0,0.6401907]
[1746694480865,0.00250373,99801.0,99800.0,0.6301907]
[1746694481065,0.00250373,99801.0,99800.0,0.6261907]
[1746694481276,0.00250373,99801.0,99800.0,0.6311907]
[1746694481869,0.00250373,99801.0,99800.0,0.6261907]
[1746694482075,0.00250373,99801.0,99800.0,0.6331907]
[1746694482568,0.00150373,99801.0,99800.0,0.6261907]
[1746694482769,0.00250373,99801.0,99800.0,0.6331907]
[1746694482961,0.00250373,99801.0,99800.0,0.6231907]
[1746694483167,0.00250373,99801.0,99800.0,0.8231907]
[1746694484167,0.00250373,99801.0,99800.0,0.6881907]
[1746694484362,0.00250373,99801.0,99800.0,0.6941907]
[1746694484966,0.00150373,99801.0,99800.0,0.6871907]
[1746694485179,0.00250373,99801.0,99800.0,0.6941907]
[1746694485670,0.00250373,99801.0,99800.0,0.7943907]
[1746694486070,0.00250373,99801.0,99800.0,0.9143907]
[1746694488076,0.00250373,99801.0,99800.0,0.9803907]
[1746694492873,0.00250373,99801.0,99800.0,0.8801907]
[1746694493079,0.00250373,99801.0,99800.0,0.7901907]
[1746694502683,0.00250373,99801.0,99800.0,0.7569907]
[1746694504084,0.00250373,99801.0,99800.0,0.7880907]
[1746694505383,0.00250373,99801.0,99800.0,1.10202226]
[1746694506086,0.00250373,99801.0,99800.0,1.13342226]
[1746694507587,0.00250373,99801.0,99800.0,0.7883907]
[1746694508683,0.00250373,99801.0,99800.0,0.7569907]
[1746694508887,0.00250373,99801.0,99800.0,0.6069907]
[1746694510387,0.00250373,99801.0,99800.0,0.6369907]
[1746694521091,0.00250373,99801.0,99800.0,0.7169907]
[1746694522488,0.00250373,99801.0,99800.0,0.97082215]
[1746694524692,0.2013887,99801.0,99800.0,0.90802215]
[1746694524995,0.001,99801.0,99800.0,0.82802215]
[1746694525692,0.001,99801.0,99800.0,0.94802215]
[1746694525893,0.0667,99801.0,99800.0,0.98602215]
[1746694527095,0.06277725,99801.0,99800.0,0.88502215]
[1746694527495,0.06277725,99801.0,99800.0,0.88102215]
[1746694527696,0.06177725,99801.0,99800.0,0.83902215]
[1746694527895,0.06277725,99801.0,99800.0,1.20582215]
[1746694528297,0.06277725,99801.0,99800.0,1.20182215]
[1746694528496,0.06277725,99801.0,99800.0,1.20582215]
[1746694528795,0.06277725,99801.0,99800.0,0.9519907]
[1746694528988,0.06277725,99801.0,99800.0,0.9919907]
[1746694529188,0.06277725,99801.0,99800.0,0.9861907]
[1746694529390,0.26316595,99801.0,99800.0,0.011]
[1746694529789,0.76316595,99801.0,99800.0,0.011]
[1746694530193,0.93116595,99801.0,99800.0,0.011]
[1746694530792,0.93116595,99801.0,99800.0,0.01]
[1746694532294,1.03136595,99801.0,99800.0,0.01]
[1746694533193,1.28136595,99801.0,99800.0,0.01]
[1746694533394,0.2004048,99793.0,99792.0,0.3608]
[1746694533792,0.3006128,99793.0,99792.0,0.3608]
[1746694534189,0.4686128,99793.0,99792.0,0.3608]
[1746694534386,0.5015128,99793.0,99792.0,0.3608]
[1746694534593,0.5015128,99793.0,99792.0,0.3648]
[1746694534895,0.5025128,99793.0,99792.0,0.3718]
[1746694541597,0.5025128,99793.0,99777.0,0.00160336]
[1746694541598,0.2004349,99778.0,99777.0,0.00160336]
[1746694542106,0.82945891,99778.0,99777.0,0.00160336]
[1746694542402,1.32945891,99778.0,99777.0,0.00160336]
[1746694542603,1.35985891,99778.0,99777.0,0.00160336]
[1746694543603,1.36885891,99778.0,99777.0,0.00160336]
[1746694544603,1.36085891,99778.0,99777.0,0.00260336]
[1746694545504,0.200455,99768.0,99767.0,0.0306]
[1746694546804,0.201455,99768.0,99767.0,0.0306]
[1746694547103,0.200455,99768.0,99767.0,0.0306]
[1746694547308,0.203455,99768.0,99767.0,0.0306]
[1746694548206,0.201455,99768.0,99767.0,0.0306]
[1746694548408,0.203455,99768.0,99767.0,0.0306]
[1746694550707,0.202455,99768.0,99767.0,0.0306]
[1746694550906,0.203455,99768.0,99767.0,0.0306]
[1746694553012,0.201455,99768.0,99767.0,0.0306]
[1746694553209,0.203455,99768.0,99767.0,0.0306]
[1746694553504,0.202455,99768.0,99767.0,0.0306]
[1746694553804,0.203455,99768.0,99767.0,0.0306]
[1746694554912,0.202455,99768.0,99767.0,0.0306]
[1746694555111,0.203455,99768.0,99767.0,0.0306]
[1746694556613,0.202455,99768.0,99767.0,0.0306]
[1746694556817,0.203455,99768.0,99767.0,0.0306]
[1746694558012,0.202455,99768.0,99767.0,0.0306]
[1746694560511,0.202455,99768.0,99767.0,0.264057]
[1746694560920,0.202455,99768.0,99767.0,0.0636]
[1746694561922,0.202455,99768.0,99767.0,0.264057]
[1746694562523,0.201455,99768.0,99767.0,0.264057]
[1746694562717,0.002,99768.0,99767.0,0.264057]
[1746694562924,0.002,99768.0,99767.0,0.424057]
[1746694563223,0.2004235,99786.0,99785.0,0.2004168]
[1746694563428,0.2004235,99786.0,99785.0,0.5612168]
[1746694563725,0.2004235,99786.0,99785.0,0.3608]
[1746694564922,0.2327235,99786.0,99785.0,0.3608]
[1746694565517,0.2327235,99786.0,99785.0,0.5612209]
[1746694565723,0.2367235,99786.0,99785.0,0.5612209]
[1746694565922,0.2377235,99786.0,99785.0,0.5612209]
[1746694566123,0.2377235,99786.0,99785.0,0.3608]
[1746694566423,0.2337235,99786.0,99785.0,0.3608]
[1746694566620,0.2347235,99786.0,99785.0,0.3618]
[1746694567119,0.2024235,99786.0,99785.0,0.5622209]
[1746694567520,0.2024235,99786.0,99785.0,0.3618]
[1746694567722,0.2024235,99786.0,99785.0,0.5622209]
[1746694567917,0.2014235,99786.0,99785.0,0.5622209]
[1746694568320,0.2014235,99786.0,99785.0,0.3618]
[1746694568521,0.2004235,99786.0,99785.0,0.5612209]
[1746694568726,0.2014235,99786.0,99785.0,0.5622209]
[1746694569525,0.2024235,99786.0,99785.0,0.5622209]
[1746694570120,0.2014235,99786.0,99785.0,0.5612209]
[1746694570318,0.2014235,99786.0,99785.0,0.5622209]
[1746694570721,0.2014235,99786.0,99785.0,0.3618]
[1746694571126,0.2024235,99786.0,99785.0,0.3618]
[1746694571820,0.2014235,99786.0,99785.0,0.3618]
[1746694572127,0.2024235,99786.0,99785.0,0.3618]
[1746694572329,0.2014235,99786.0,99785.0,0.3608]
[1746694572524,0.2014235,99786.0,99785.0,0.3618]
[1746694572724,0.2024235,99786.0,99785.0,0.3618]
[1746694573028,0.2024235,99786.0,99785.0,0.001]
[1746694573228,0.3704235,99786.0,99785.0,0.001]
[1746694573429,0.3694235,99786.0,99785.0,0.001]
[1746694575629,0.2004209,99785.0,99784.0,0.2317229]
[1746694575929,0.2916209,99785.0,99784.0,0.2317229]
[1746694576229,0.4596209,99785.0,99784.0,0.2317229]
[1746694577132,0.2916209,99785.0,99784.0,0.2317229]
[1746694578729,0.2916209,99785.0,99784.0,0.2004229]
[1746694578932,0.2004229,99784.0,99783.0,0.0315]
[1746694579425,0.2635229,99784.0,99783.0,0.2319249]
[1746694580235,0.2645229,99784.0,99783.0,0.2329249]
[1746694580934,0.2655229,99784.0,99783.0,0.2329249]
[1746694581632,0.2655229,99784.0,99783.0,0.2319249]
[1746694581832,0.2655229,99784.0,99783.0,0.2329249]
[1746694582532,0.2645229,99784.0,99783.0,0.2329249]
[1746694582827,0.2635229,99784.0,99783.0,0.2319249]
[1746694583033,0.2645229,99784.0,99783.0,0.2329249]
[1746694583338,0.2635229,99784.0,99783.0,0.0315]
[1746694583634,0.2645229,99784.0,99783.0,0.0325]
[1746694584832,0.2645229,99784.0,99783.0,0.2329249]
[1746694585230,0.2645229,99784.0,99783.0,0.0325]
[1746694586033,0.2645229,99784.0,99762.0,0.4109166]
[1746694586034,0.200463,99764.0,99763.0,0.2323617]
[1746694586237,0.200463,99764.0,99763.0,0.0642]
[1746694586936,0.0501151,99766.0,99762.0,0.3608]
[1746694586937,0.2004651,99763.0,99762.0,0.3608]
[1746694587839,0.2305651,99763.0,99762.0,0.3608]
[1746694588738,0.7315651,99763.0,99762.0,0.3608]
[1746694589041,0.7315651,99763.0,99762.0,0.3638]
[1746694591239,0.8995651,99763.0,99762.0,0.3638]
[1746694591640,0.8995651,99763.0,99762.0,0.003]
[1746694596242,0.7315651,99763.0,99762.0,0.003]
[1746694598145,0.8995651,99763.0,99762.0,0.003]
[1746694599238,0.7315651,99763.0,99762.0,0.003]
[1746694600944,0.7014651,99763.0,99762.0,0.003]
[1746694601138,0.7014651,99763.0,99762.0,0.035]
[1746694601346,0.7014651,99763.0,99762.0,0.2354671]
[1746694601747,0.7014651,99763.0,99762.0,0.035]
[1746694602646,0.7014651,99763.0,99762.0,0.2354671]
[1746694602837,0.7014651,99763.0,99762.0,0.0657]
[1746694603439,0.7014651,99763.0,99762.0,0.2661671]
[1746694603640,0.501,99763.0,99762.0,0.3061671]
[1746694603947,0.001,99763.0,99762.0,0.3261671]
[1746694604545,0.2014651,99763.0,99762.0,0.3261671]
[1746694606841,0.2014651,99763.0,99762.0,0.0657]
[1746694607543,0.2014651,99763.0,99762.0,0.0337]
[1746694608049,0.7637651,99763.0,99762.0,0.0337]
[1746694611750,0.7637651,99763.0,99762.0,0.003]
[1746694613253,0.9317651,99763.0,99762.0,0.003]
[1746694615454,0.2004711,99760.0,99759.0,0.3608]
[1746694616347,0.3684711,99760.0,99759.0,0.3608]
[1746694617159,0.7024711,99760.0,99759.0,0.3608]
[1746694618561,0.7014711,99760.0,99759.0,0.3608]
[1746694619171,0.7004711,99760.0,99759.0,0.3608]
[1746694619363,0.7024711,99760.0,99759.0,0.3608]
[1746694619969,0.7014711,99760.0,99759.0,0.3608]
[1746694621569,0.7024711,99760.0,99759.0,0.3608]
[1746694622366,0.7014711,99760.0,99759.0,0.3608]
[1746694623068,0.7004711,99760.0,99759.0,0.3608]
[1746694623270,0.7024711,99760.0,99759.0,0.3608]
[1746694624768,0.7014711,99760.0,99759.0,0.3608]
[1746694625562,0.7024711,99760.0,99759.0,0.3608]
[1746694626268,0.7004711,99760.0,99759.0,0.3608]
[1746694626461,0.7014711,99760.0,99759.0,0.3608]
[1746694632067,0.7024711,99760.0,99759.0,0.3608]
[1746694632776,0.7014711,99760.0,99759.0,0.3608]
[1746694636181,0.7024711,99760.0,99759.0,0.3928]
[1746694637581,0.7024711,99760.0,99759.0,0.3608]
[1746694637779,0.7004711,99760.0,99759.0,0.3608]
[1746694637976,0.7014711,99760.0,99759.0,0.3608]
[1746694638685,0.7024711,99760.0,99759.0,0.3608]
[1746694642679,0.7024711,99760.0,99759.0,0.3912]
[1746694644386,0.7004711,99760.0,99759.0,0.3912]
[1746694644789,0.7024711,99760.0,99759.0,0.0304]
[1746694645584,1.0632711,99760.0,99759.0,0.0304]
[1746694647887,1.0662711,99760.0,99759.0,0.0304]
[1746694648293,1.0632711,99760.0,99759.0,0.0304]
[1746694648588,1.0662711,99760.0,99759.0,0.0304]
[1746694649385,0.7024711,99760.0,99759.0,0.0304]
[1746694649591,0.7054711,99760.0,99759.0,0.0304]
[1746694649994,0.7054711,99760.0,99759.0,0.0607]
[1746694650296,0.7054711,99760.0,99759.0,0.2611731]
[1746694650986,0.7024711,99760.0,99759.0,0.2611731]
[1746694651182,0.7054711,99760.0,99759.0,0.0607]
[1746694651382,0.7034711,99760.0,99759.0,0.0607]
[1746694651593,0.7004711,99760.0,99759.0,0.0607]
[1746694651892,0.7024711,99760.0,99759.0,0.0607]
[1746694654397,0.7034711,99760.0,99759.0,0.0607]
[1746694654789,0.7054711,99760.0,99759.0,0.0607]
[1746694655188,0.7034711,99760.0,99759.0,0.0607]
[1746694655695,0.7014711,99760.0,99759.0,0.0607]
[1746694655888,0.7034711,99760.0,99759.0,0.0607]
[1746694656093,0.7340711,99760.0,99759.0,0.0304]
[1746694656287,0.2004751,99758.0,99757.0,0.0001]
[1746694656886,0.2630751,99758.0,99757.0,0.0001]